bitfinex/quotes_ETHUSD_20220309
["timestamp","ask_amount","ask_price","bid_price","bid_amount"]
[1646792162497,0.3,2618.6,2617.8,1.1643]
[1646792162699,0.3,2618.6,2617.9,1.56416198]
[1646792162943,0.3,2618.6,2618.4,0.00448376]
[1646792163145,2.44631951,2618.7,2618.4,0.00448376]
[1646792163344,0.49066951,2618.7,2618.4,0.00448376]
[1646792163746,0.49066951,2618.7,2617.8,1.1643]
[1646792163943,1.58403735,2618.7,2617.9,1.56423187]
[1646792164144,1.58403735,2618.7,2618.4,0.0044837]
[1646792164344,0.49066951,2618.7,2618.4,0.0044837]
[1646792164546,1.44629951,2618.7,2618.4,0.0044837]
[1646792164746,1.44629951,2618.7,2618.4,8.37e-05]
[1646792164951,9.871,2618.5,2618.4,8.37e-05]
[1646792165146,9.871,2618.5,2617.0,1.56472648]
[1646792165147,14.23301795,2618.5,2617.0,1.56472648]
[1646792165347,9.871,2617.8,2616.4,3.9659]
[1646792165547,0.95623,2617.4,2616.5,1.56494984]
[1646792165947,0.55,2617.3,2616.5,1.56494984]
[1646792166146,0.85,2617.3,2616.5,1.56494984]
[1646792166349,0.85,2617.3,2615.7,0.6903501]
[1646792166350,3.0,2616.6,2615.7,0.6903501]
[1646792166597,11.871,2617.1,2615.3,0.382]
[1646792166598,0.95668,2616.1,2615.3,0.382]
[1646792166804,0.55,2616.0,2615.3,0.382]
[1646792167002,1.91346,2615.8,2615.3,0.382]
[1646792167203,0.55,2615.7,2615.3,0.382]
[1646792167806,0.55,2615.7,2615.3,3.9]
[1646792168004,1.0,2616.1,2615.7,1.65]
[1646792168206,0.3,2616.0,2615.7,1.65]
[1646792168403,0.3,2616.1,2615.7,1.65]
[1646792168702,4.23388282,2616.2,2615.7,1.65]
[1646792168905,0.95649,2616.0,2615.7,1.65]
[1646792169304,1.25649,2616.0,2615.7,1.65]
[1646792170348,1.25649,2616.0,2615.7,1.65476001]
[1646792171138,1.25649,2616.0,2615.7,1.65]
[1646792171339,1.11071651,2615.8,2615.7,1.65476001]
[1646792171739,0.3,2615.8,2615.7,1.65476001]
[1646792172138,0.46118929,2615.9,2615.7,1.65476001]
[1646792172341,0.3,2615.8,2615.7,1.65]
[1646792172842,0.16118929,2615.9,2615.7,1.65]
[1646792173646,0.16118929,2615.9,2615.7,1.6]
[1646792173647,0.73273527,2615.9,2615.7,1.6]
[1646792173844,0.73273527,2615.9,2615.7,1.60456696]
[1646792174698,0.73273527,2615.9,2615.3,3.9]
[1646792174699,5.0,2615.7,2615.3,3.9]
[1646792174897,4.05,2615.6,2615.3,3.9]
[1646792175301,1.11405276,2615.5,2615.3,3.9]
[1646792175501,0.55,2615.4,2615.3,3.9]
[1646792175702,5.96392,2615.4,2615.3,3.9]
[1646792175903,5.0,2615.3,2614.9,1.1669]
[1646792176103,5.0,2615.3,2614.6,2.9769]
[1646792176104,0.55,2615.2,2614.6,2.9769]
[1646792176906,1.914,2615.1,2614.6,2.9769]
[1646792178540,3.00777611,2615.2,2614.7,0.00460645]
[1646792178541,1.15777611,2615.2,2614.7,0.00460645]
[1646792178743,0.7627705,2615.9,2614.7,0.00460645]
[1646792178744,0.57154598,2615.9,2614.7,0.38680645]
[1646792178942,0.57154598,2615.9,2614.8,0.3822]
[1646792179140,0.18774724,2616.0,2614.8,0.3822]
[1646792179344,0.18774724,2616.0,2614.8,3.8561]
[1646792179542,0.92008397,2615.8,2614.8,3.8561]
[1646792179844,0.92008397,2615.8,2615.3,0.00460571]
[1646792180042,1.77008397,2615.8,2615.3,0.00460571]
[1646792180643,1.77008397,2615.8,2615.3,3.90460571]
[1646792180841,1.13433753,2615.4,2615.3,3.9]
[1646792181443,1.13433753,2615.4,2614.8,3.4739]
[1646792181444,5.0,2615.3,2614.8,3.4739]
[1646792181694,5.55,2615.3,2614.7,1.1696]
[1646792181899,6.55,2615.3,2614.6,2.970609]
[1646792182094,10.05,2615.3,2614.6,2.970609]
[1646792182294,1.16437517,2614.8,2614.6,2.970609]
[1646792182497,1.16437517,2614.8,2614.3,0.01838813]
[1646792182694,1.16437517,2614.8,2614.1,1.1696]
[1646792182695,5.0,2614.6,2614.1,1.13798813]
[1646792182898,5.0,2614.6,2613.6,0.382]
[1646792182899,0.55,2614.5,2613.6,0.382]
[1646792183099,3.5,2614.4,2613.6,0.382]
[1646792183297,0.55,2614.3,2613.6,0.382]
[1646792183498,4.45727,2614.2,2613.6,0.382]
[1646792183700,0.55,2614.1,2613.6,0.382]
[1646792183898,0.55,2614.1,2613.0,11.8272]
[1646792183899,3.5,2614.0,2613.0,11.8272]
[1646792184098,0.55,2613.9,2613.0,2.9173]
[1646792184299,3.5,2613.8,2613.0,2.9173]
[1646792184504,1.69718271,2613.7,2613.0,2.9173]
[1646792184698,1.91511,2613.5,2613.0,2.9173]
[1646792184903,1.0,2613.8,2612.7,6.4438]
[1646792185099,1.0,2613.8,2612.7,6.826]
[1646792185352,0.77337287,2613.9,2612.8,0.04092649]
[1646792185642,0.47337287,2613.9,2612.9,0.3822]
[1646792185844,0.95737,2613.7,2612.9,0.3822]
[1646792186242,3.38816287,2613.9,2612.9,0.3822]
[1646792186444,0.17337287,2613.9,2612.9,0.3822]
[1646792187044,0.17337287,2613.9,2613.3,0.00352857]
[1646792187946,0.17337287,2613.9,2612.9,0.3822]
[1646792188145,2.25727,2614.0,2612.9,0.3822]
[1646792188146,0.75939893,2614.0,2612.9,0.3822]
[1646792188345,0.3,2614.1,2613.5,0.00483871]
[1646792188545,0.55,2614.2,2613.5,0.00483871]
[1646792189190,0.85,2614.2,2612.9,0.3822]
[1646792189388,0.95727,2614.0,2612.9,0.3822]
[1646792189591,0.95727,2614.0,2613.7,0.00483837]
[1646792189789,1.25727,2614.0,2613.7,0.00483837]
[1646792189988,0.3,2614.0,2613.7,0.00483837]
[1646792190190,0.13819997,2614.5,2613.7,0.00483837]
[1646792190392,0.1912407,2615.1,2613.4,0.3822]
[1646792190393,0.95702,2614.8,2613.4,0.3822]
[1646792190596,0.1912407,2615.1,2613.8,0.3822]
[1646792190892,6.4582,2615.7,2614.0,0.3822]
[1646792190893,0.00437361,2614.6,2614.0,0.3822]
[1646792191490,0.00437361,2614.6,2613.9,3.8593]
[1646792191491,0.00437361,2614.6,2613.9,4.2415]
[1646792191691,0.9568,2615.3,2613.9,4.2415]
[1646792191889,0.9568,2615.3,2614.2,0.00474706]
[1646792191890,0.00437436,2614.6,2614.2,0.00474706]
[1646792192947,0.90397829,2615.2,2614.0,1.33891]
[1646792192948,0.9568,2615.3,2614.0,1.33891]
[1646792193249,0.1912407,2615.9,2614.0,1.33891]
[1646792193250,0.00437453,2614.6,2614.3,0.3822]
[1646792193446,0.00437453,2614.6,2614.3,1.88869]
[1646792193650,0.01748984,2615.9,2614.6,0.38722979]
[1646792193851,0.01748984,2615.9,2614.6,0.68722979]
[1646792194047,0.01748984,2615.9,2614.6,0.30502979]
[1646792194048,0.95663,2615.7,2614.6,0.30502979]
[1646792194248,0.95663,2615.7,2614.6,0.00502979]
[1646792194847,0.95663,2615.7,2614.8,0.95658]
[1646792195448,4.45663,2615.7,2614.8,0.95658]
[1646792195649,0.95663,2615.7,2614.8,0.95658]
[1646792195849,4.45663,2615.7,2614.8,0.95658]
[1646792196048,4.45663,2615.7,2614.6,0.00502979]
[1646792196253,5.45663,2615.7,2614.6,0.00502979]
[1646792196688,0.00131763,2615.3,2614.6,0.00502979]
[1646792197294,0.00131763,2615.3,2614.8,0.95657]
[1646792197493,0.00131763,2615.3,2614.9,2.9719]
[1646792197690,4.5,2616.4,2614.9,3.3541]
[1646792198097,0.00131763,2615.2,2614.9,3.3541]
[1646792198294,0.00131763,2615.2,2615.1,1.33866]
[1646792198995,0.3827,2616.5,2615.2,0.3822]
[1646792199194,1.0168925,2616.8,2615.4,0.3822]
[1646792199195,0.01745101,2615.9,2615.4,0.3822]
[1646792199394,0.01745101,2615.9,2615.4,0.6822]
[1646792200096,1.21774476,2616.6,2615.6,0.3822]
[1646792200353,0.0168925,2616.8,2615.6,0.3822]
[1646792201241,0.0168925,2616.8,2615.9,0.95615]
[1646792201444,0.00130913,2616.3,2615.9,0.95615]
[1646792202444,0.0168925,2616.8,2615.9,0.95615]
[1646792202641,0.00130913,2616.2,2615.9,0.95615]
[1646792203648,0.0168925,2616.8,2615.9,0.95615]
[1646792203846,0.0168925,2616.8,2615.9,3.83405]
[1646792204093,0.0168925,2616.8,2615.9,3.78405]
[1646792204094,0.00436052,2616.2,2615.9,3.78405]
[1646792204899,0.0168925,2616.8,2615.9,3.78405]
[1646792205103,0.00436052,2616.2,2615.9,3.78405]
[1646792205303,0.00436052,2616.2,2615.9,2.8779]
[1646792206101,0.85,2616.4,2615.9,2.8779]
[1646792206305,0.89596011,2616.1,2615.9,2.8779]
[1646792206504,1.85245011,2616.1,2615.9,2.8779]
[1646792206803,1.85245011,2616.1,2615.6,3.9]
[1646792206804,5.0,2616.0,2615.6,3.9]
[1646792207004,3.5,2615.9,2615.6,3.9]
[1646792207204,0.55,2615.8,2615.6,3.9]
[1646792207607,0.85,2615.8,2615.6,3.9]
[1646792208246,0.55,2615.8,2615.6,3.9]
[1646792208447,1.50661,2615.8,2615.6,3.9]
[1646792208848,1.51097052,2615.8,2615.6,3.9]
[1646792209349,1.81097052,2615.8,2615.6,3.9]
[1646792209749,1.80661,2615.8,2615.6,3.9]
[1646792209949,1.81097052,2615.8,2615.6,3.9]
[1646792210951,1.80661,2615.8,2615.6,3.9]
[1646792211150,0.90562739,2615.7,2615.6,3.9]
[1646792212801,2.81097052,2615.8,2615.6,3.9]
[1646792213003,0.30436052,2615.8,2615.6,3.9]
[1646792213303,3.5,2616.3,2615.6,3.9]
[1646792213304,0.76571121,2616.4,2615.6,3.9]
[1646792213713,0.00131258,2615.8,2615.6,3.9]
[1646792214510,1.53086051,2616.4,2615.6,3.9]
[1646792214710,0.00131258,2615.8,2615.6,3.9]
[1646792215546,0.9565,2616.1,2615.6,3.9]
[1646792215948,0.00436052,2615.8,2615.6,3.9]
[1646792216951,0.9565,2616.1,2615.6,3.9]
[1646792217148,0.00388883,2615.8,2615.6,3.9]
[1646792218153,0.9565,2616.1,2615.6,3.9]
[1646792218354,0.00388883,2615.8,2615.6,3.9]
[1646792219292,0.9565,2616.1,2615.6,3.9]
[1646792219691,0.00388883,2615.8,2615.6,3.9]
[1646792220495,1.52083692,2616.6,2615.6,3.9]
[1646792220699,0.00436052,2615.8,2615.7,3.5]
[1646792220997,0.00436052,2615.8,2615.6,4.2822]
[1646792221197,0.01743945,2616.2,2615.8,0.00872103]
[1646792221797,0.78817715,2616.8,2615.8,0.00872103]
[1646792221798,2.01834829,2616.8,2615.8,0.00872103]
[1646792221998,5.51834829,2616.8,2615.8,0.00872103]
[1646792222396,6.06834829,2616.8,2615.8,0.00872103]
[1646792222596,0.95628,2616.7,2615.8,0.00872103]
[1646792224542,0.00434961,2616.4,2615.8,0.00872103]
[1646792225342,3.5,2616.6,2615.8,0.00872103]
[1646792225545,0.00434961,2616.2,2615.8,0.00872103]
[1646792226591,0.95628,2616.7,2615.8,0.00872103]
[1646792226791,0.00434961,2616.1,2615.8,0.00872103]
[1646792226994,0.00434961,2616.1,2615.9,0.95615]
[1646792227192,0.00434961,2616.1,2615.9,1.33835]
[1646792227591,0.00434961,2616.1,2615.9,5.02265]
[1646792227795,0.0168925,2616.8,2616.1,0.3822]
[1646792227996,0.0168925,2616.8,2616.4,0.3822]
[1646792227997,0.01739585,2616.5,2616.4,0.3822]
[1646792228595,0.01739585,2616.5,2616.3,0.95596]
[1646792228997,0.0168925,2616.8,2616.3,0.95596]
[1646792229196,0.0013016,2616.6,2616.4,0.3822]
[1646792229995,0.0168925,2616.8,2616.4,0.3822]
[1646792230196,0.0168925,2616.8,2616.3,0.95596]
[1646792230443,0.00130162,2616.6,2616.3,1.33816]
[1646792231243,0.0168925,2616.8,2616.3,1.33816]
[1646792231443,0.0168925,2616.8,2616.3,13.02816]
[1646792231643,0.0013016,2616.6,2616.3,1.63816]
[1646792231842,0.0013016,2616.6,2616.5,0.3822]
[1646792232043,0.0013016,2616.6,2616.5,0.3322]
[1646792232243,0.0013016,2616.6,2616.5,0.6322]
[1646792232546,0.0168925,2616.8,2616.5,0.6322]
[1646792232742,0.0168925,2616.8,2616.5,1.58805]
[1646792232949,0.00429525,2616.7,2616.5,1.25585]
[1646792233148,0.00429525,2616.7,2616.5,0.95585]
[1646792233748,0.0168925,2616.8,2616.5,0.95585]
[1646792233950,0.00429525,2616.7,2616.5,1.33805]
[1646792234190,0.00429525,2616.7,2616.5,2.2939211]
[1646792234589,0.00429525,2616.7,2616.5,2.5939211]
[1646792234790,0.00429525,2616.7,2616.5,3.5939211]
[1646792234991,0.0168925,2616.8,2616.6,0.3822]
[1646792235192,0.0013077,2616.7,2616.6,0.3822]
[1646792235389,0.0013077,2616.7,2616.6,1.94726839]
[1646792236191,0.0168925,2616.8,2616.6,0.3822]
[1646792236391,0.02089764,2616.8,2616.5,3.5117211]
[1646792236593,0.02089764,2616.8,2616.6,1.56496021]
[1646792236996,0.02089764,2616.8,2616.5,0.95585]
[1646792237193,0.02089764,2616.8,2616.6,1.56499873]
[1646792237394,0.0168925,2616.8,2616.6,1.56499873]
[1646792237593,0.02089764,2616.8,2616.6,1.56499873]
[1646792238645,0.0168925,2616.8,2616.6,1.56499873]
[1646792238844,0.02089764,2616.8,2616.6,1.56499873]
[1646792239846,0.0168925,2616.8,2616.6,1.56499873]
[1646792240047,0.02089764,2616.8,2616.6,1.56499873]
[1646792240849,0.02089764,2616.8,2616.5,0.95585]
[1646792241048,0.0168925,2616.8,2616.5,0.95585]
[1646792241250,0.02029642,2616.8,2616.5,0.95585]
[1646792242309,0.0168925,2616.8,2616.5,0.95585]
[1646792242508,0.02029642,2616.8,2616.5,2.8675916]
[1646792243514,0.0168925,2616.8,2616.5,3.8234762]
[1646792243713,0.0168925,2616.8,2616.5,7.7234762]
[1646792243714,0.02029642,2616.8,2616.5,7.7234762]
[1646792244614,0.0168925,2616.8,2616.5,7.7234762]
[1646792244815,0.02042701,2616.8,2616.5,6.7675916]
[1646792245214,0.02042701,2616.8,2616.5,4.85585]
[1646792245739,0.0168925,2616.8,2616.5,4.85585]
[1646792246141,0.02042701,2616.8,2616.5,3.9]
[1646792246942,0.0168925,2616.8,2616.5,3.9]
[1646792247342,0.02042701,2616.8,2616.5,3.9]
[1646792248146,0.0168925,2616.8,2616.5,3.9]
[1646792248647,0.02039782,2616.8,2616.5,3.9]
[1646792249492,0.0168925,2616.8,2616.5,3.9]
[1646792249693,0.0168925,2616.8,2616.5,5.8116155]
[1646792249694,0.02039782,2616.8,2616.5,5.8116155]
[1646792251392,0.02039782,2616.8,2616.5,3.9]
[1646792251793,0.0168925,2616.8,2616.5,3.9]
[1646792251992,0.02040435,2616.8,2616.5,3.9]
[1646792252692,0.02040435,2616.8,2616.5,4.85605]
[1646792252946,0.0168925,2616.8,2616.5,4.85605]
[1646792253346,0.02040435,2616.8,2616.5,4.85605]
[1646792254148,0.0168925,2616.8,2616.5,4.85605]
[1646792254547,0.02040435,2616.8,2616.5,4.85605]
[1646792255346,0.0168925,2616.8,2616.5,4.85605]
[1646792255747,0.02040289,2616.8,2616.5,4.85605]
[1646792256595,0.0168925,2616.8,2616.5,4.85605]
[1646792256802,0.02040289,2616.8,2616.5,5.8119076]
[1646792256996,0.01403885,2617.3,2616.5,6.1119076]
[1646792257198,0.01403885,2617.3,2616.6,6.86500012]
[1646792257400,0.01403885,2617.3,2616.8,1.91159]
[1646792257799,0.3823,2617.4,2616.8,1.91159]
[1646792258206,0.3823,2617.4,2616.9,0.9557688]
[1646792258602,1.73231204,2618.0,2616.9,1.9114688]
[1646792258603,5.23231204,2618.0,2616.9,1.9114688]
[1646792258804,3.03231204,2618.0,2616.9,1.9114688]
[1646792259203,0.00105585,2617.6,2616.9,1.9114688]
[1646792260111,0.00105585,2617.6,2617.1,2.866737]
[1646792260351,2.50377269,2618.2,2617.3,0.95558]
[1646792260549,0.00105585,2617.4,2617.3,0.95558]
[1646792260750,0.00105585,2617.4,2617.2,1.91116]
[1646792261348,0.90290494,2618.0,2617.2,1.91116]
[1646792261550,0.90290494,2618.0,2617.0,5.59292]
[1646792261749,0.00105529,2617.4,2617.0,5.59292]
[1646792262550,0.90290494,2618.0,2617.0,9.49292]
[1646792262950,0.00113497,2617.3,2617.0,9.49292]
[1646792263651,0.00113497,2617.3,2617.0,9.87512]
[1646792263851,0.90290494,2618.0,2617.0,9.87512]
[1646792264095,0.00377629,2617.3,2617.1,1.56479522]
[1646792264297,0.00377629,2617.3,2617.2,3.8822]
[1646792264502,0.56148291,2618.6,2617.4,4.5]
[1646792264700,0.56148291,2618.6,2617.7,1.91079]
[1646792265103,0.89923903,2618.9,2617.8,3.5]
[1646792265298,2.50377269,2619.1,2618.2,12.0722]
[1646792265505,7.269e-05,2619.1,2618.4,0.3822]
[1646792265703,7.269e-05,2619.1,2618.6,0.3822]
[1646792265903,0.19204299,2619.7,2618.6,0.3822]
[1646792265904,0.19204299,2619.7,2618.6,3.8822]
[1646792266307,0.19204299,2619.7,2618.8,0.95502]
[1646792266502,0.00103483,2619.0,2618.8,0.95502]
[1646792267009,0.00103483,2619.0,2618.9,0.95514]
[1646792267503,1.05304752,2619.5,2618.9,0.95514]
[1646792267703,1.05304752,2619.5,2618.7,3.11304]
[1646792267704,0.00103483,2619.1,2618.7,3.11304]
[1646792268543,1.05304752,2619.5,2618.7,3.11304]
[1646792268843,0.00344248,2619.0,2618.7,3.11304]
[1646792269846,1.05304752,2619.5,2618.7,3.11304]
[1646792270045,0.00373895,2619.0,2618.7,3.11304]
[1646792270448,0.00373895,2619.0,2618.8,3.5]
[1646792271047,0.00373895,2619.0,2618.7,3.79524]
[1646792271048,0.00096,2619.6,2619.0,0.9548815]
[1646792271246,0.00450522,2619.4,2619.1,0.95491]
[1646792271450,0.00450522,2619.4,2619.2,3.5]
[1646792271712,0.00450522,2619.4,2619.1,0.95491]
[1646792272107,0.19204299,2619.7,2619.0,1.90981]
[1646792272305,1.17379687,2619.7,2619.0,1.90981]
[1646792272503,0.13915997,2620.3,2618.8,2.8625]
[1646792272704,0.00114084,2619.4,2619.0,0.95508]
[1646792272910,0.00114084,2619.4,2619.0,4.85508]
[1646792273508,0.00096,2620.1,2619.0,4.85508]
[1646792273707,0.00096,2620.1,2619.0,3.9]
[1646792273708,0.00119929,2619.3,2619.0,3.9]
[1646792274707,1.86235144,2619.7,2619.0,3.9]
[1646792274913,0.00119929,2619.3,2619.0,3.9]
[1646792275347,0.00119929,2619.3,2619.0,1.054824]
[1646792275649,5.74227477,2619.2,2618.1,0.95538]
[1646792275848,5.74227477,2619.2,2617.9,1.1554]
[1646792275849,6.75469678,2619.2,2617.9,1.1554]
[1646792276047,0.19227477,2619.1,2617.9,1.1554]
[1646792276248,0.55,2619.0,2617.9,1.1554]
[1646792276649,0.85,2619.0,2618.1,0.95539]
[1646792277250,0.85,2619.0,2618.0,1.91073]
[1646792277455,0.00397135,2618.7,2618.0,1.91073]
[1646792278256,0.85,2619.0,2618.0,1.91073]
[1646792278456,0.85,2619.0,2618.1,3.5]
[1646792278653,0.85,2619.0,2618.0,1.91073]
[1646792278654,0.00397135,2618.5,2618.0,1.91073]
[1646792279493,0.85,2619.0,2618.0,1.91073]
[1646792279694,0.00397135,2618.4,2618.0,1.91073]
[1646792280699,0.3,2619.0,2618.0,1.91073]
[1646792280900,0.00335623,2618.3,2618.0,1.91073]
[1646792281899,3.6319521,2619.1,2618.0,1.91073]
[1646792282100,0.00335623,2618.3,2618.0,1.91073]
[1646792283148,3.2265121,2619.1,2618.0,1.91073]
[1646792283349,0.00335623,2618.3,2618.0,1.91073]
[1646792283551,0.00335623,2618.3,2618.0,5.61073]
[1646792284350,4.1819621,2619.1,2618.0,5.61073]
[1646792284551,0.00348903,2618.3,2618.0,5.61073]
[1646792284951,0.00348903,2618.3,2618.0,3.7]
[1646792285354,0.55348903,2618.3,2618.0,3.7]
[1646792285552,0.55,2618.3,2618.0,3.7]
[1646792285750,0.85348903,2618.3,2618.0,3.7]
[1646792286251,1.77692272,2618.3,2618.0,3.7]
[1646792286452,0.85348903,2618.3,2618.0,3.7]
[1646792286697,0.85,2618.3,2618.0,3.7]
[1646792287099,0.85348903,2618.3,2618.0,3.7]
[1646792287701,4.0,2618.0,2616.9,4.92260092]
[1646792287906,0.55,2617.9,2616.9,4.92260092]
[1646792288105,0.55,2617.9,2616.6,1.1702]
[1646792288106,0.74228423,2617.9,2616.7,0.191]
[1646792288306,1.04228423,2617.9,2617.4,0.00433026]
[1646792288603,0.19228423,2617.8,2617.4,0.00433026]
[1646792288804,0.55,2617.7,2617.4,0.00433026]
[1646792289103,0.95606,2617.5,2616.6,1.1702]
[1646792289304,0.55,2617.4,2616.6,1.1702]
[1646792291066,0.95613,2617.2,2616.6,1.1702]
[1646792291261,0.55,2617.1,2616.2,0.191]
[1646792291962,0.55,2617.1,2616.8,0.00491815]
[1646792292762,0.55,2617.1,2616.2,3.891]
[1646792293167,0.55,2617.1,2616.8,0.00491808]
[1646792293566,1.0,2617.5,2616.8,0.00491808]
[1646792293767,0.3,2617.5,2616.8,0.00491808]
[1646792294120,0.3,2617.6,2616.3,3.8822]
[1646792294308,6.9088,2617.8,2616.4,1.56491181]
[1646792294508,0.0042494,2617.7,2617.0,0.0049178]
[1646792294710,1.1616882,2617.1,2617.0,0.0049178]
[1646792295308,1.1616882,2617.1,2616.4,1.1543]
[1646792295514,1.1616882,2617.1,2616.9,0.00491794]
[1646792296319,1.1616882,2617.1,2616.4,1.1543]
[1646792296716,4.05,2617.0,2616.9,3.638e-05]
[1646792297118,4.05,2617.0,2615.8,1.56529146]
[1646792297119,5.2407,2617.0,2615.8,1.56529146]
[1646792297315,0.1907,2616.9,2615.7,1.1543]
[1646792297520,0.55,2616.8,2615.7,1.1543]
[1646792297717,1.22661516,2616.4,2615.8,1.5653125]
[1646792297947,0.95644,2616.3,2615.7,1.1543]
[1646792298158,0.95644,2616.3,2615.3,15.2347]
[1646792298159,0.95644,2616.3,2615.3,15.6169]
[1646792298350,0.85,2616.4,2615.6,2.52159721]
[1646792298351,0.3,2616.4,2615.6,2.52159721]
[1646792298550,1.0,2616.7,2615.7,5.13944727]
[1646792298551,0.1907,2616.7,2615.7,5.13944727]
[1646792298755,10.7284,2617.7,2615.7,5.13944727]
[1646792298756,3.9029,2617.2,2615.9,0.3822]
[1646792298951,1.16442878,2617.0,2616.0,5.06531721]
[1646792299150,1.95611,2617.2,2616.1,1.56531721]
[1646792299349,1.44681,2617.2,2616.1,1.56531721]
[1646792300052,0.95622,2616.9,2615.9,2.8747]
[1646792300250,1.13888027,2616.8,2615.9,2.8747]
[1646792300453,1.13888027,2616.8,2615.9,0.3822]
[1646792301450,1.13888027,2616.8,2616.2,0.00491891]
[1646792302302,0.3,2616.9,2616.0,0.95616]
[1646792302702,1.69683,2617.2,2616.4,0.00491871]
[1646792302907,2.69683,2617.2,2616.4,0.00491871]
[1646792303109,1.99683,2617.2,2616.4,0.00491871]
[1646792303306,1.12551614,2616.9,2616.4,0.00491871]
[1646792303807,1.12551614,2616.9,2616.7,0.00491829]
[1646792303808,1.42551614,2616.9,2616.7,0.00491829]
[1646792304011,3.5,2616.8,2616.7,0.00491829]
[1646792304210,5.2407,2616.8,2616.7,0.00491829]
[1646792304810,5.2407,2616.8,2615.8,1.2159]
[1646792305009,5.2407,2616.8,2616.6,0.00491836]
[1646792305209,1.7407,2616.8,2616.6,0.00491836]
[1646792305645,0.7407,2616.8,2616.6,0.00491836]
[1646792306048,0.7407,2616.8,2616.0,0.95616]
[1646792306244,0.7407,2616.8,2616.6,0.00477088]
[1646792307344,0.7407,2616.8,2615.8,1.2159]
[1646792307547,0.7407,2616.8,2616.6,0.00477088]
[1646792308348,0.7407,2616.8,2615.8,1.2159]
[1646792308849,3.5,2616.7,2616.6,0.00477088]
[1646792309094,1.25629,2616.7,2616.6,0.00477088]
[1646792309296,1.95629,2616.7,2616.6,0.00477088]
[1646792309495,1.25629,2616.7,2616.6,0.00477088]
[1646792309696,4.75629,2616.7,2615.8,1.2159]
[1646792310094,5.75629,2616.7,2615.8,1.2159]
[1646792311302,2.25629,2616.7,2615.8,1.2159]
[1646792311702,1.25629,2616.7,2615.8,1.2159]
[1646792313552,1.25629,2616.7,2616.1,0.00491341]
[1646792313760,5.0,2616.6,2615.8,1.12081341]
[1646792313954,8.5,2616.6,2615.8,1.12081341]
[1646792314154,9.5,2616.6,2615.8,1.12081341]
[1646792314356,9.6907,2616.6,2615.8,1.12081341]
[1646792314954,9.6907,2616.6,2615.8,1.10388882]
[1646792317201,6.1907,2616.6,2615.8,1.10388882]
[1646792317405,6.1907,2616.6,2615.8,1.04814054]
[1646792317701,1.1907,2616.6,2615.8,1.04814054]
[1646792317904,0.6,2616.7,2615.8,1.04814054]
[1646792318104,0.3,2616.7,2615.8,1.04814054]
[1646792318305,0.3,2616.7,2616.0,0.00490984]
[1646792318706,1.4907,2616.8,2616.0,0.00490984]
[1646792318912,3.5,2616.7,2616.0,0.00490984]
[1646792319107,0.7407,2616.6,2616.0,0.00490984]
[1646792319306,1.0407,2616.6,2615.8,1.04814054]
[1646792319506,3.5,2616.5,2615.8,1.04814054]
[1646792319706,0.7407,2616.4,2616.0,0.00490994]
[1646792319907,1.6971,2616.4,2616.0,0.00490994]
[1646792320371,1.6971,2616.4,2615.1,1.2446]
[1646792320372,5.1971,2616.4,2615.1,1.2446]
[1646792320563,3.69227741,2616.3,2615.1,1.2446]
[1646792320759,0.55,2616.2,2616.0,0.00490984]
[1646792320960,0.7407,2616.2,2616.0,0.00490984]
[1646792321563,0.7407,2616.2,2615.1,1.6268]
[1646792321761,0.7407,2616.2,2615.2,1.56566759]
[1646792321960,0.7407,2616.2,2615.2,1.94786759]
[1646792322160,0.7407,2616.2,2615.3,1.56566759]
[1646792322559,0.6,2616.3,2615.3,1.56566759]
[1646792322760,0.3,2616.3,2615.3,1.56566759]
[1646792323164,1.3,2616.5,2615.6,0.00475818]
[1646792323367,0.3,2616.5,2615.6,0.00475818]
[1646792323766,0.86267919,2616.6,2615.6,0.00475818]
[1646792323964,0.95639,2616.4,2615.2,0.3822]
[1646792324199,0.95639,2616.4,2615.3,1.56554774]
[1646792324399,0.3,2616.5,2615.9,0.00475778]
[1646792324599,0.19227741,2617.0,2615.9,0.00475778]
[1646792324600,0.1907,2616.8,2615.9,0.00475778]
[1646792324800,0.1907,2617.1,2616.0,1.5653865]
[1646792325000,0.02136014,2617.2,2616.1,3.5]
[1646792325298,8.08271379,2617.8,2616.1,13.4185]
[1646792325299,0.1907,2617.5,2616.1,13.4185]
[1646792325500,0.02136422,2617.2,2616.1,13.4185]
[1646792325697,0.02136422,2617.2,2616.1,15.33028]
[1646792325898,0.02136422,2617.2,2616.1,11.83028]
[1646792326099,0.21206422,2617.2,2616.1,11.83028]
[1646792326499,3.6907,2617.2,2616.1,9.9185]
[1646792326702,0.21206504,2617.2,2616.1,9.9185]
[1646792327600,0.1907,2617.2,2616.1,9.9185]
[1646792327858,0.21206504,2617.2,2616.1,9.9185]
[1646792328450,1.16815504,2617.2,2616.1,9.9185]
[1646792328852,1.14679,2617.2,2616.1,9.9185]
[1646792329255,1.75161097,2617.2,2616.1,9.9185]
[1646792329454,1.16815504,2617.2,2616.1,9.9185]
[1646792329654,1.16815504,2617.2,2616.2,1.56527279]
[1646792330054,1.14679,2617.2,2616.2,1.56527279]
[1646792330254,1.16815545,2617.2,2616.2,1.56527279]
[1646792330854,0.21206545,2617.2,2616.2,1.56527279]
[1646792331255,0.1907,2617.2,2616.2,1.56527279]
[1646792331475,0.21206545,2617.2,2616.2,1.56527279]
[1646792331899,0.21206545,2617.2,2616.1,9.9185]
[1646792332297,0.21206545,2617.2,2616.2,1.56533838]
[1646792332500,0.1907,2617.2,2616.1,9.9185]
[1646792332696,0.21206504,2617.2,2616.1,9.9185]
[1646792332901,0.21206504,2617.2,2616.2,1.56532534]
[1646792333602,0.1907,2617.2,2616.2,1.56532534]
[1646792334000,0.21206545,2617.2,2616.2,1.56532534]
[1646792334802,0.1907,2617.2,2616.2,1.56532534]
[1646792335002,1.93480229,2617.3,2616.2,1.56532534]
[1646792335203,0.02136545,2617.2,2616.2,1.56532534]